fUST/lending_fUST_20250322
["ID","MTS","AMOUNT","RATE_DAILY","PERIOD"]
[356516528,1742591434345,-500.0,0.00032876,21]
[356516529,1742591434356,-555.33,0.00032876,2]
[356516530,1742591434366,-500.0,0.00032876,21]
[356516531,1742591434376,-500.0,0.00032876,21]
[356516532,1742591434385,-1080.22,0.00032876,21]
[356516533,1742591434394,-500.0,0.00032876,21]
[356516534,1742591434403,-500.0,0.00032876,21]
[356516535,1742591434413,-500.0,0.00032876,21]
[356516536,1742591434422,-500.0,0.00032876,21]
[356516537,1742591434431,-500.0,0.00032876,21]
[356516538,1742591434440,-958.2,0.00032876,21]
[356516539,1742591434449,-651.61,0.00032876,21]
[356516540,1742591434458,-500.0,0.00032876,21]
[356516541,1742591434468,-1128.76,0.00032876,21]
[356516542,1742591434477,-500.0,0.00032876,21]
[356516543,1742591434486,-523.70206187,0.00032876,21]
[356516544,1742591434496,-500.0,0.00032876,21]
[356516545,1742591434505,-500.0,0.00032876,21]
[356516546,1742591434515,-154.27664314,0.00032876,21]
[356516547,1742591434526,-500.0,0.00032876,21]
[356516548,1742591434536,-752.86,0.00032876,21]
[356516549,1742591434546,-500.0,0.00032876,21]
[356516550,1742591434556,-500.0,0.00032876,21]
[356516551,1742591434565,-500.0,0.00032876,21]
[356516552,1742591434574,-502.68478729,0.00032876,21]
[356516553,1742591434584,-505.53670313,0.00032876,21]
[356516554,1742591434593,-709.39,0.00032876,21]
[356516555,1742591434602,-500.0,0.00032876,21]
[356516556,1742591434612,-588.73,0.00032876,21]
[356516557,1742591434621,-500.0,0.00032876,21]
[356516558,1742591434630,-500.0,0.00032876,21]
[356516559,1742591434639,-929.0,0.00032876,21]
[356516560,1742591434649,-544.75,0.00032876,21]
[356516561,1742591434662,-574.88,0.00032876,2]
[356516562,1742591434672,-4002.29,0.00032876,21]
[356516563,1742591434682,-571.89,0.00032876,21]
[356516564,1742591434691,-500.0,0.00032876,21]
[356516565,1742591434699,-500.0,0.00032876,2]
[356516566,1742591434709,-500.0,0.00032876,21]
[356516567,1742591434718,-500.0,0.00032876,21]
[356516568,1742591434727,-1345.31,0.00032876,21]
[356516569,1742591434736,-500.0,0.00032876,21]
[356516570,1742591434746,-849.64,0.00032876,21]
[356516571,1742591434755,-1124.98,0.00032876,21]
[356516572,1742591434764,-506.69195778,0.00032876,21]
[356516573,1742591434773,-500.0,0.00032876,2]
[356516574,1742591434783,-500.0,0.00032876,21]
[356516575,1742591434792,-500.0,0.00032876,21]
[356516576,1742591434801,-5870.49,0.00032876,2]
[356516577,1742591434811,-902.52,0.00032876,21]
[356516578,1742591434820,-1227.03,0.00032876,21]
[356516579,1742591434829,-500.0,0.00032876,21]
[356516580,1742591434839,-500.0,0.00032876,21]
[356516581,1742591434848,-884.41,0.00032876,21]
[356516582,1742591434857,-500.0,0.00032876,21]
[356516583,1742591434867,-500.0,0.00032876,21]
[356516584,1742591434876,-1708.14,0.00032876,21]
[356516585,1742591434885,-664.27,0.00032876,21]
[356516586,1742591434893,-582.2,0.00032876,21]
[356516587,1742591434903,-606.18568406,0.00032876,21]
[356516588,1742591434912,-500.0,0.00032876,21]
[356516589,1742591434921,-743.43,0.00032876,21]
[356516590,1742591434930,-500.0,0.00032876,21]
[356516591,1742591434939,-500.0,0.00032876,21]
[356516592,1742591434948,-500.0,0.00032876,21]
[356516593,1742591434958,-1208.15,0.00032876,21]
[356516594,1742591434968,-500.0,0.00032876,21]
[356516595,1742591434979,-534.93,0.00032876,21]
[356516596,1742591434989,-500.0,0.00032876,21]
[356516597,1742591434999,-694.66,0.00032876,21]
[356516598,1742591435009,-563.59,0.00032876,21]
[356516599,1742591435019,-559.65,0.00032876,21]
[356516600,1742591435029,-537.44,0.00032876,21]
[356516601,1742591435038,-509.66,0.00032876,21]
[356516602,1742591435047,-500.0,0.00032876,21]
[356516603,1742591435057,-588.15,0.00032876,21]
[356516604,1742591435067,-500.82167536,0.00032876,21]
[356516605,1742591435076,-200.0,0.00032876,7]
[356516606,1742591435085,-1490.13,0.00032876,21]
[356516607,1742591435095,-188.0,0.00032876,2]
[356516608,1742591435104,-500.0,0.00032876,21]
[356516609,1742591435115,-500.0,0.00032876,21]
[356516610,1742591435124,-500.0,0.00032876,21]
[356516611,1742591435136,-500.0,0.00032876,21]
[356516612,1742591435146,-500.0,0.00032876,21]
[356516613,1742591435155,-993.7,0.00032876,21]
[356516614,1742591435163,-500.0,0.00032876,21]
[356516615,1742591435172,-500.0,0.00032876,21]
[356516616,1742591435182,-500.0,0.00032876,21]
[356516617,1742591435191,-500.0,0.00032876,21]
[356516618,1742591435201,-500.0,0.00032876,120]
[356516619,1742591435210,-500.0,0.00032876,21]
[356516620,1742591435219,-500.0,0.00032876,21]
[356516621,1742591435237,-836.68,0.00032876,21]
[356516622,1742591435249,-1511.6,0.00032876,21]
[356516623,1742591435258,-636.22,0.00032876,21]
[356516624,1742591435267,-500.0,0.00032876,21]
[356516625,1742591435280,-517.75871822,0.00032876,21]
[356516626,1742591435290,-938.39,0.00032876,21]
[356516627,1742591435299,-583.42,0.00032876,21]
[356516628,1742591435308,-500.0,0.00032876,21]
[356516629,1742591435319,-500.0,0.00032876,21]
[356516630,1742591435328,-500.0,0.00032876,21]
[356516631,1742591435337,-649.38065829,0.00032876,21]
[356516632,1742591435347,-500.0,0.00032876,21]
[356516633,1742591435358,-500.0,0.00032876,21]
[356516634,1742591435368,-1857.38,0.00032876,21]
[356516635,1742591435378,-500.0,0.00032876,21]
[356516636,1742591435387,-1275.92,0.00032876,21]
[356516637,1742591435396,-500.0,0.00032876,21]
[356516638,1742591435405,-1097.19,0.00032876,21]
[356516639,1742591435415,-500.0,0.00032876,21]
[356516640,1742591435424,-500.0,0.00032876,21]
[356516641,1742591435434,-300.0,0.00032876,30]
[356516642,1742591435443,-500.0,0.00032876,21]
[356516643,1742591435453,-1189.61,0.00032876,21]
[356516644,1742591435462,-500.0,0.00032876,21]
[356516645,1742591435472,-717.92,0.00032876,21]
[356516646,1742591435482,-500.0,0.00032876,21]
[356516647,1742591435491,-1092.31,0.00032876,21]
[356516648,1742591435501,-495.21578761,0.00032876,21]
[356516649,1742591435510,-500.0,0.00032876,21]
[356516650,1742591435520,-500.0,0.00032876,21]
[356516651,1742591435529,-500.0,0.00032876,21]
[356516652,1742591435539,-609.95,0.00032876,21]
[356516653,1742591435549,-500.0,0.00032876,21]
[356516654,1742591435559,-500.0,0.00032876,21]
[356516655,1742591435568,-500.0,0.00032876,7]
[356516656,1742591435578,-1142.24,0.00032876,21]
[356516657,1742591435587,-500.0,0.00032876,21]
[356516658,1742591435597,-500.0,0.00032876,21]
[356516659,1742591435606,-500.0,0.00032876,21]
[356516660,1742591435616,-516.16209997,0.00032876,21]
[356516661,1742591435626,-500.0,0.00032876,21]
[356516662,1742591435636,-500.0,0.00032876,21]
[356516663,1742591435645,-621.39,0.00032876,21]
[356516664,1742591435656,-657.43,0.00032876,21]
[356516665,1742591435666,-521.28426164,0.00032876,21]
[356516666,1742591435676,-500.0,0.00032876,21]
[356516667,1742591435686,-959.76,0.00032876,21]
[356516668,1742591435695,-500.0,0.00032876,21]
[356516669,1742591435704,-500.0,0.00032876,21]
[356516670,1742591435714,-528.61,0.00032876,21]
[356516671,1742591435723,-500.0,0.00032876,21]
[356516672,1742591435733,-582.5,0.00032876,21]
[356516673,1742591435742,-1302.44,0.00032876,21]
[356516674,1742591435752,-590.23,0.00032876,21]
[356516675,1742591435762,-919.53,0.00032876,21]
[356516676,1742591435771,-500.0,0.00032876,21]
[356516677,1742591435781,-1349.86,0.00032876,21]
[356516678,1742591435791,-1848.8,0.00032876,21]
[356516679,1742591435800,-500.0,0.00032876,21]
[356516680,1742591435809,-500.0,0.00032876,21]
[356516681,1742591435819,-500.0,0.00032876,21]
[356516682,1742591435828,-500.0,0.00032876,21]
[356516683,1742591435838,-529.37,0.00032876,21]
[356516684,1742591435847,-1052.56,0.00032876,21]
[356516685,1742591435861,-2876.26,0.00032876,21]
[356516686,1742591435871,-686.89,0.00032876,21]
[356516687,1742591435881,-366.63467849,0.00032876,21]
[356516688,1742591435891,-500.0,0.00032876,14]
[356516689,1742591435901,-549.93,0.00032876,21]
[356516690,1742591435910,-1313.42,0.00032876,21]
[356516691,1742591435920,-500.0,0.00032876,21]
[356516692,1742591435930,-1090.52,0.00032876,21]
[356516693,1742591435939,-1116.56,0.00032876,21]
[356516694,1742591435948,-1439.95,0.00032876,21]
[356516695,1742591435958,-801.96,0.00032876,21]
[356516696,1742591435968,-500.0,0.00032876,2]
[356516697,1742591435977,-1356.27,0.00032876,21]
[356516698,1742591435987,-500.0,0.00032876,21]
[356516699,1742591435998,-1024.04,0.00032876,21]
[356516700,1742591436008,-500.0,0.00032876,21]
[356516701,1742591436018,-500.0,0.00032876,21]
[356516702,1742591436027,-1817.38,0.00032876,21]
[356516703,1742591436036,-500.0,0.00032876,21]
[356516704,1742591436046,-16864.93,0.00032876,21]
[356516705,1742591436056,-500.0,0.00032876,21]
[356516706,1742591436066,-500.0,0.00032876,21]
[356516707,1742591436075,-575.70084693,0.00032876,21]
[356516708,1742591436085,-500.0,0.00032876,21]
[356516709,1742591436096,-500.0,0.00032876,21]
[356516710,1742591436105,-899.45,0.00032876,21]
[356516711,1742591436115,-500.0,0.00032876,21]
[356516712,1742591436125,-500.0,0.00032876,21]
[356516713,1742591436134,-1250.73,0.00032876,21]
[356516714,1742591436144,-500.0,0.00032876,21]
[356516715,1742591436154,-500.0,0.00032876,21]
[356516716,1742591436164,-1681.64,0.00032876,21]
[356516717,1742591436174,-775.5,0.00032876,21]
[356516718,1742591436183,-500.0,0.00032876,21]
[356516719,1742591436193,-610.85,0.00032876,21]
[356516720,1742591436203,-1077.9,0.00032876,21]
[356516721,1742591436212,-500.0,0.00032876,21]
[356516722,1742591436222,-803.59,0.00032876,21]
[356516723,1742591436231,-908.62,0.00032876,21]
[356516724,1742591436241,-1088.65,0.00032876,21]
[356516725,1742591436251,-543.62,0.00032876,21]
[356516726,1742591436261,-500.0,0.00032876,21]
[356516727,1742591436272,-500.0,0.00032876,21]
[356516728,1742591436284,-502.13297393,0.00032876,21]
[356516729,1742591436293,-500.0,0.00032876,21]
[356516730,1742591436303,-500.0,0.00032876,21]
[356516731,1742591436315,-798.63,0.00032876,21]
[356516732,1742591436324,-6684.92,0.00032876,21]
[356516733,1742591436334,-500.0,0.00032876,21]
[356516734,1742591436343,-500.0,0.00032876,21]
[356516735,1742591436357,-6804.02,0.00032876,21]
[356516736,1742591436367,-500.0,0.00032876,21]
[356516737,1742591436378,-1464.8,0.00032876,21]
[356516738,1742591436387,-500.0,0.00032876,21]
[356516739,1742591436397,-500.0,0.00032876,21]
[356516740,1742591436407,-684.0,0.00032876,21]
[356516741,1742591436416,-694.08,0.00032876,21]
[356516742,1742591436425,-6106.95,0.00032876,21]
[356516743,1742591436435,-500.0,0.00032876,21]
[356516744,1742591436446,-500.0,0.00032876,21]
[356516745,1742591436456,-500.0,0.00032876,21]
[356516746,1742591436465,-809.92,0.00032876,21]
[356516747,1742591436475,-500.0,0.00032876,21]
[356516748,1742591436486,-859.91,0.00032876,21]
[356516749,1742591436497,-500.0,0.00032876,21]
[356516750,1742591436508,-500.0,0.00032876,21]
[356516751,1742591436517,-500.0,0.00032876,21]
[356516752,1742591436527,-1439.69,0.00032876,21]
[356516753,1742591436536,-500.0,0.00032876,21]
[356516754,1742591436546,-500.0,0.00032876,21]
[356516755,1742591436555,-500.0,0.00032876,21]
[356516756,1742591436565,-500.0,0.00032876,21]
[356516757,1742591436574,-551.68,0.00032876,21]
[356516758,1742591436584,-756.12,0.00032876,21]
[356516759,1742591436595,-677.67,0.00032876,21]
[356516760,1742591436604,-500.0,0.00032876,21]
[356516761,1742591436614,-2414.74,0.00032876,21]
[356516762,1742591436623,-1252.28,0.00032876,21]
[356516763,1742591436633,-2429.17,0.00032876,21]
[356516764,1742591436644,-500.0,0.00032876,21]
[356516765,1742591436654,-500.0,0.00032876,21]
[356516766,1742591436663,-561.95,0.00032876,21]
[356516767,1742591436673,-500.0,0.00032876,21]
[356516768,1742591436683,-507.09,0.00032876,21]
[356516769,1742591436692,-1044.34,0.00032876,21]
[356516770,1742591436702,-4684.8,0.00032876,21]
[356516771,1742591436711,-500.0,0.00032876,21]
[356516772,1742591436721,-512.61,0.00032876,21]
[356516773,1742591436730,-588.86,0.00032876,21]
[356516774,1742591436740,-823.69,0.00032876,21]
[356516775,1742591436750,-553.82,0.00032876,21]
[356516776,1742591436760,-500.0,0.00032876,21]
[356516777,1742591436770,-534.05,0.00032876,21]
[356516778,1742591436780,-19446.06,0.00032876,21]
[356516779,1742591436789,-578.92,0.00032876,21]
[356516780,1742591436799,-500.0,0.00032876,21]
[356516781,1742591436809,-500.0,0.00032876,21]
[356516782,1742591436818,-2514.53,0.00032876,21]
[356516783,1742591436828,-500.0,0.00032876,21]
[356516784,1742591436839,-500.0,0.00032876,21]
[356516785,1742591436848,-500.0,0.00032876,21]
[356516786,1742591436858,-981.57,0.00032876,21]
[356516787,1742591436868,-1091.53,0.00032876,21]
[356516788,1742591436879,-500.0,0.00032876,21]
[356516789,1742591436888,-2681.12,0.00032876,21]
[356516790,1742591436898,-1221.27,0.00032876,21]
[356516791,1742591436908,-501.52583031,0.00032876,21]
[356516792,1742591436918,-500.0,0.00032876,21]
[356516793,1742591436930,-481.63312596,0.00032876,21]
[356516794,1742591436941,-500.0,0.00032876,21]
[356516795,1742591436950,-500.0,0.00032876,21]
[356516796,1742591436960,-500.0,0.00032876,21]
[356516797,1742591436970,-500.0,0.00032876,21]
[356516798,1742591436981,-849.64,0.00032876,21]
[356516799,1742591436992,-1388.79,0.00032876,21]
[356516800,1742591437003,-500.0,0.00032876,21]
[356516801,1742591437014,-781.64,0.00032876,21]
[356516802,1742591437024,-3368.12,0.00032876,21]
[356516803,1742591437034,-581.01,0.00032876,21]
[356516804,1742591437043,-1305.04,0.00032876,21]
[356516805,1742591437053,-817.63,0.00032876,21]
[356516806,1742591437063,-500.0,0.00032876,21]
[356516807,1742591437072,-504.68,0.00032876,21]
[356516808,1742591437082,-866.68,0.00032876,21]
[356516809,1742591437091,-500.0,0.00032876,21]
[356516810,1742591437101,-500.0,0.00032876,21]
[356516811,1742591437110,-500.0,0.00032876,21]
[356516812,1742591437120,-2144.06,0.00032876,21]
[356516813,1742591437130,-500.0,0.00032876,21]
[356516814,1742591437141,-602.18,0.00032876,21]
[356516815,1742591437152,-9395.74,0.00032876,21]
[356516816,1742591437163,-9395.74,0.00032876,21]
[356516817,1742591437173,-9395.74,0.00032876,21]
[356516818,1742591437183,-9395.74,0.00032876,21]
[356516819,1742591437193,-9395.74,0.00032876,21]
[356516821,1742591437203,-500.0,0.00032876,21]
[356516822,1742591437219,-9395.74,0.00032876,21]
[356516823,1742591437235,-9395.74,0.00032876,21]
[356516824,1742591437246,-9395.74,0.00032876,21]
[356516826,1742591437256,-500.0,0.00032876,21]
[356516828,1742591437266,-9395.74,0.00032876,21]
[356516829,1742591437277,-9395.74,0.00032876,21]
[356516830,1742591437287,-303.13465269,0.00032876,21]
[356516831,1742591437297,-9395.74,0.00032876,21]
[356516832,1742591437307,-9395.74,0.00032876,21]
[356516833,1742591437318,-9395.74,0.00032876,21]
[356516834,1742591437329,-9395.74,0.00032876,21]
[356516835,1742591437341,-9395.74,0.00032876,21]
[356516836,1742591437352,-617.04,0.00032876,21]
[356516838,1742591437363,-36.68000276,0.00032876,21]
[356516868,1742591438005,-165.3413061,0.00019898,2]
[356516869,1742591438032,-318.7355185,0.00019898,2]
[356516874,1742591439944,-181.2644815,0.00019898,2]
[356516875,1742591439954,-169.5519185,0.00019898,2]
[356516902,1742591443482,-337.39109159,0.00019898,2]
[356516904,1742591443492,-500.0,0.00019898,2]
[356516906,1742591443501,-500.0,0.00019898,2]
[356516908,1742591443510,-500.0,0.00019898,2]
[356516910,1742591443519,-500.0,0.00019898,2]
[356516912,1742591443529,-500.0,0.00019898,2]
[356516914,1742591443538,-500.0,0.00019898,2]
[356516916,1742591443547,-500.0,0.00019898,2]
[356516918,1742591443556,-500.0,0.00019898,2]
[356516920,1742591443566,-500.0,0.00019898,2]
[356516922,1742591443576,-81.29647572,0.00019898,2]
[356516937,1742591566612,2000.0,0.0005013,30]
[356516938,1742591566866,1996.7,0.0005013,30]
[356516940,1742591660160,499.77,0.0005013,120]
[356516952,1742591845247,228.0,0.00050142,30]
[356516953,1742591849133,999.5,0.00050142,120]
[356516954,1742591854847,10000.0,0.00050142,30]
[356516955,1742591861847,10000.0,0.00050142,30]
[356516956,1742591874491,10000.0,0.00050142,30]
[356516957,1742591880471,-158.0944893,0.00019795,2]
[356516958,1742591880686,50000.0,0.00050142,30]
[356516959,1742591891613,50000.0,0.00050142,30]
[356516960,1742591899399,50000.0,0.00050142,30]
[356516964,1742591911543,50000.0,0.00050142,30]
[356516965,1742591918513,50000.0,0.00050142,30]
[356516966,1742591927031,50000.0,0.00050142,30]
[356516971,1742591986009,39115.0,0.00050142,30]
[356516972,1742592074230,200000.0,0.00050142,38]
[356516973,1742592076566,-158.0944893,0.00019793,2]
[356516974,1742592078428,1939.9,0.00050142,120]
[356516975,1742592099228,201533.84334002,0.00050142,30]
[356516976,1742592127894,692.468891,0.00050142,120]
[356516982,1742592450126,3462.88155304,0.00050144,120]
[356516983,1742592456412,3240.98864343,0.00050144,45]
[356516984,1742592462358,418.61520407,0.00050144,120]
[356516985,1742592466968,607.9094332,0.00050144,30]
[356516986,1742592467897,3331.993226,0.00050144,120]
[356516987,1742592473632,551.72383653,0.00050144,120]
[356516988,1742592481327,516.6094508,0.00050144,120]
[356516989,1742592481434,1212.27034788,0.00050144,60]
[356516992,1742592492026,247.75560393,0.00050144,120]
[356516993,1742592494341,498.999995,0.00050144,120]
[356516994,1742592500409,903.53370971,0.00050144,120]
[356516995,1742592502517,459.23678058,0.00050144,120]
[356516996,1742592504942,3143.92306056,0.00050144,30]
[356516997,1742592505337,968.1498069,0.00050144,120]
[356516998,1742592507778,542.25036442,0.00050144,120]
[356516999,1742592508448,2200.71286828,0.00050144,120]
[356517000,1742592509869,679.02664734,0.00050144,120]
[356517001,1742592510157,1077.76777506,0.00050144,30]
[356517002,1742592510705,3199.96904528,0.00050144,30]
[356517003,1742592511066,240.82074905,0.00050144,120]
[356517004,1742592511123,230.73861602,0.00050144,32]
[356517005,1742592511347,3358.77823626,0.00050144,60]
[356517006,1742592511560,1173.46693177,0.00050144,30]
[356517007,1742592512898,1388.86295468,0.00050144,120]
[356517008,1742592513159,421.98897055,0.00050144,30]
[356517009,1742592513407,934.61564398,0.00050144,120]
[356517010,1742592513579,394.60923022,0.00050144,60]
[356517011,1742592513716,2000.0,0.00050144,120]
[356517012,1742592513871,240.68987298,0.00050144,30]
[356517013,1742592514389,1085.77073905,0.00050144,120]
[356517014,1742592514461,350.04268535,0.00050144,120]
[356517015,1742592515024,1564.13537513,0.00050144,30]
[356517016,1742592515108,937.15058734,0.00050144,120]
[356517017,1742592515238,3129.60205833,0.00050144,120]
[356517019,1742592516088,2545.2465105,0.00050144,120]
[356517020,1742592516766,361.37896793,0.00050144,120]
[356517021,1742592517269,334.35832131,0.00050144,120]
[356517022,1742592517604,993.91727185,0.00050144,120]
[356517023,1742592518156,1223.91767907,0.00050144,120]
[356517024,1742592518189,440.23425764,0.00050144,120]
[356517025,1742592518312,1656.10522864,0.00050144,120]
[356517026,1742592518500,2300.46041412,0.00050144,120]
[356517027,1742592519014,831.31598188,0.00050144,120]
[356517028,1742592519307,420.80804998,0.00050144,120]
[356517029,1742592519387,1671.7493566,0.00050144,120]
[356517030,1742592519417,212.9967998,0.00050144,120]
[356517031,1742592520107,233.26370462,0.00050144,120]
[356517032,1742592520647,312.69749443,0.00050144,120]
[356517033,1742592520760,201.00797733,0.00050144,120]
[356517034,1742592521737,1136.86894222,0.00050144,120]
[356517035,1742592521789,2389.76402289,0.00050144,120]
[356517036,1742592522008,2591.36834897,0.00050144,30]
[356517037,1742592522143,463.86206382,0.00050144,120]
[356517038,1742592522204,2120.93554306,0.00050144,120]
[356517039,1742592522300,5704.61495408,0.00050144,30]
[356517040,1742592522393,400.00701178,0.00050144,30]
[356517041,1742592525586,19999.97,0.00050144,120]
[356517086,1742592637982,-250.0,0.00019773,2]
[356517087,1742592637991,-600.0,0.00019877,2]
[356517088,1742592638001,-1000.0,0.00019879,2]
[356517089,1742592638010,-300.0,0.00019888,2]
[356517090,1742592638019,-500.0,0.00019888,2]
[356517091,1742592638029,-500.0,0.00019888,2]
[356517092,1742592638038,-500.0,0.00019888,2]
[356517093,1742592638047,-500.0,0.00019888,2]
[356517094,1742592638056,-500.0,0.00019888,2]
[356517095,1742592638066,-500.0,0.00019888,2]
[356517096,1742592638075,-500.0,0.00019888,2]
[356517097,1742592638084,-500.0,0.00019888,2]
[356517098,1742592638094,-500.0,0.00019888,2]
[356517099,1742592638103,-500.0,0.00019888,2]
[356517100,1742592638112,-500.0,0.00019888,2]
[356517101,1742592638121,-500.0,0.00019888,2]
[356517102,1742592638131,-500.0,0.00019888,2]
[356517103,1742592638140,-500.0,0.00019888,2]
[356517104,1742592638150,-175.56202559,0.00019888,2]
[356517163,1742592643108,-324.43797441,0.00019888,2]
[356517166,1742592643117,-500.0,0.00019888,2]
[356517168,1742592643126,-500.0,0.00019888,2]
[356517170,1742592643136,-500.0,0.00019888,2]
[356517172,1742592643146,-500.0,0.00019888,2]
[356517174,1742592643155,-500.0,0.00019888,2]
[356517176,1742592643165,-500.0,0.00019888,2]
[356517178,1742592643174,-500.0,0.00019888,2]
[356517180,1742592643183,-500.0,0.00019888,2]
[356517182,1742592643192,-500.0,0.00019888,2]
[356517184,1742592643201,-500.0,0.00019888,2]
[356517186,1742592643211,-500.0,0.00019888,2]
[356517188,1742592643220,-500.0,0.00019888,2]
[356517190,1742592643229,-500.0,0.00019888,2]
[356517192,1742592643239,-500.0,0.00019888,2]
[356517194,1742592643248,-500.0,0.00019888,2]
[356517196,1742592643257,-500.0,0.00019888,2]
[356517198,1742592643266,-500.0,0.00019888,2]
[356517200,1742592643276,-500.0,0.00019888,2]
[356517202,1742592643285,-500.0,0.00019888,2]
[356517204,1742592643294,-500.0,0.00019888,2]
[356517206,1742592643304,-500.0,0.00019888,2]
[356517208,1742592643314,-500.0,0.00019888,2]
[356517210,1742592643323,-500.0,0.00019888,2]
[356517213,1742592643332,-217.98793646,0.00019888,2]
[356517214,1742592643341,-500.0,0.00019888,2]
[356517216,1742592643351,-500.0,0.00019888,2]
[356517219,1742592643361,-500.0,0.00019888,2]
[356517221,1742592643371,-500.0,0.00019888,2]
[356517223,1742592643380,-500.0,0.00019888,2]
[356517225,1742592643390,-500.0,0.00019888,2]
[356517227,1742592643399,-347.14033762,0.000199,2]
[356517571,1742593182854,-152.0,0.00019163,2]
[356517572,1742593202113,-164.1889786,0.00019163,2]
[356517573,1742593202138,-43.63130978,0.00019739,2]
[356517574,1742593214568,-152.0,0.00018971,2]
[356517575,1742593214591,-38.0,0.00019739,2]
[356517576,1742593452968,268.21229401,0.0005015,120]
[356517589,1742593570855,19999.97,0.0005015,120]
[356517628,1742593832117,-161.313294,0.00019394,2]
[356517630,1742593832128,-161.313294,0.00019394,31]
[356517632,1742593832140,-161.313294,0.00019394,61]
[356517635,1742593832155,-161.313294,0.00019394,90]
[356517637,1742593832167,-161.313294,0.00019394,120]
[356517639,1742593832179,-151.0,0.00019739,2]
[356517641,1742593832189,-1000.0,0.00019739,2]
[356517642,1742593832201,-600.0,0.00019739,2]
[356517644,1742593832212,-300.0,0.00019749,2]
[356517646,1742593832223,-8572.0669917,0.0001975,2]
[356517648,1742593832235,-622.2,0.00019794,2]
[356517650,1742593832246,-645.2214,0.00019849,2]
[356517653,1742593832256,-669.0945918,0.00019904,2]
[356517655,1742593832268,-2362.3393578,0.00019907,2]
[356517657,1742593832278,-693.8510917,0.00019959,2]
[356517659,1742593832289,-160.0,0.0002,3]
[356517661,1742593832301,-719.52358209,0.00020014,2]
[356517664,1742593832311,-746.14595463,0.00020069,2]
[356517666,1742593832322,-773.75335495,0.00020124,2]
[356517668,1742593832333,-802.38222908,0.00020179,2]
[356517670,1742593832344,-832.07037156,0.00020234,2]
[356517672,1742593832355,-156.587,0.00020287,2]
[356517675,1742593832365,-862.8569753,0.00020289,2]
[356517677,1742593832376,-894.78268339,0.00020344,2]
[356517679,1742593832387,-927.88964268,0.00020399,2]
[356517682,1742593832398,-962.22155946,0.00020454,2]
[356517684,1742593832408,-997.82375716,0.00020509,2]
[356517686,1742593832419,-1034.74323617,0.00020564,2]
[356517688,1742593832431,-1073.02873591,0.00020619,2]
[356517691,1742593832442,-353.09724133,0.00020637,2]
[356517693,1742593832452,-155.42874537,0.00020667,2]
[356517695,1742593832463,-500.0,0.00020667,2]
[356517697,1742593832474,-190.0,0.00020667,2]
[356517699,1742593832484,-500.0,0.00020667,2]
[356517701,1742593832494,-500.0,0.00020667,2]
[356517704,1742593832505,-500.0,0.00020667,2]
[356517706,1742593832516,-500.0,0.00020667,2]
[356517708,1742593832526,-500.0,0.00020667,2]
[356517710,1742593832537,-500.0,0.00020667,2]
[356517712,1742593832548,-500.0,0.00020667,2]
[356517714,1742593832558,-500.0,0.00020667,2]
[356517716,1742593832569,-500.0,0.00020667,2]